bitfinex-derivatives/quotes_SOLF0:USTF0_20251125
["timestamp","ask_amount","ask_price","bid_price","bid_amount"]
[1764100221381,3.05,136.29,136.26,1.8293226]
[1764100221582,3.05,136.29,136.26,0.05293422]
[1764100221788,3.05,136.29,136.26,1.82849934]
[1764100221992,3.05,136.29,136.26,0.05293422]
[1764100222298,3.05,136.29,136.26,1.82856191]
[1764100222491,3.05,136.29,136.26,0.05293422]
[1764100222792,3.05,136.29,136.26,1.82747009]
[1764100222992,3.05,136.29,136.26,0.05293422]
[1764100223192,3.05,136.29,136.26,1.82667052]
[1764100223595,3.05,136.29,136.26,0.05293422]
[1764100223795,3.05,136.29,136.26,1.82632446]
[1764100223993,3.05,136.29,136.27,1.77284253]
[1764100225798,3.05,136.31,136.27,1.77284253]
[1764100226103,1.27718139,136.32,136.29,1.77284253]
[1764100226104,3.05,136.32,136.29,1.77284253]
[1764100226295,3.05,136.32,136.29,0.04874485]
[1764100226488,3.05,136.32,136.29,1.82014594]
[1764100226802,3.05,136.34,136.3,1.77098018]
[1764100227002,3.05,136.34,136.3,4.68098018]
[1764100227197,25.24,136.35,136.31,4.68098018]
[1764100227402,25.24,136.35,136.31,2.91]
[1764100227902,3.05,136.37,136.33,2.91]
[1764100228106,3.05,136.37,136.34,0.05456935]
[1764100228296,3.05,136.37,136.34,2.96456935]
[1764100228493,25.24,136.4,136.34,9.56866935]
[1764100228694,28.29,136.4,136.34,2.96456935]
[1764100228998,28.29,136.4,136.34,0.05456935]
[1764100228999,9.52085483,136.39,136.34,0.05456935]
[1764100229204,3.05,136.38,136.34,0.05456935]
[1764100229701,3.05,136.36,136.34,0.05456935]
[1764100232195,9.6533,136.36,136.34,0.05456935]
[1764100232495,3.05,136.35,136.34,0.05456935]
[1764100236408,5.49735153,136.38,136.34,2.96456935]
[1764100236601,28.29,136.4,136.36,2.91]
[1764100236801,3.05,136.38,136.34,0.05456935]
[1764100236998,3.05,136.38,136.35,1.76887512]
[1764100237198,3.05,136.39,136.35,4.67887512]
[1764100237393,3.05,136.39,136.36,1.76887512]
[1764100237602,3.05,136.39,136.35,2.91]
[1764100237799,3.05,136.39,136.36,1.76960924]
[1764100238805,3.05,136.39,136.34,0.05456935]
[1764100238806,3.05,136.37,136.34,0.05456935]
[1764100239499,3.05,136.35,136.34,0.05456935]
[1764100242801,8.51074305,136.35,136.34,0.05456935]
[1764100243204,3.05,136.32,136.26,9.5178]
[1764100243405,3.05,136.32,136.31,1.782811]
[1764100243700,3.05,136.31,136.22,2.91]
[1764100243908,3.05,136.29,136.28,1.78378993]
[1764100244097,3.05,136.29,136.23,2.91]
[1764100244299,0.05099297,136.27,136.25,2.95634614]
[1764100246705,0.05099297,136.27,136.26,2.91]
[1764100248309,5.58272729,136.27,136.26,2.91]
[1764100248906,5.58272729,136.27,136.25,3.15634614]
[1764100249110,5.53171695,136.26,136.25,3.15634614]
[1764100249506,0.05099297,136.27,136.26,8.6581]
[1764100249911,25.22,136.3,136.27,2.05]
[1764100250408,3.06,136.3,136.26,2.05]
[1764100250618,15.15606656,136.29,136.26,2.05]
[1764100250807,15.15606656,136.29,136.25,0.04634614]
[1764100250808,5.32268453,136.28,136.25,2.09634614]
[1764100251009,9.83360469,136.29,136.25,2.09634614]
[1764100251315,5.32885679,136.28,136.25,2.09634614]
[1764100251516,9.83360469,136.29,136.25,2.09634614]
[1764100251716,5.3288575,136.28,136.25,2.09634614]
[1764100251907,9.83360469,136.29,136.25,8.70484614]
[1764100252104,5.3288575,136.28,136.25,8.70484614]
[1764100252313,9.83360469,136.29,136.25,8.70484614]
[1764100252514,5.33207428,136.28,136.25,8.70484614]
[1764100252813,9.83360469,136.29,136.25,8.70484614]
[1764100253015,5.33207428,136.28,136.25,8.70484614]
[1764100253215,9.83360469,136.29,136.25,8.70484614]
[1764100253420,5.33646934,136.28,136.25,8.70484614]
[1764100253617,9.83360469,136.29,136.25,8.70484614]
[1764100253817,5.33646934,136.28,136.25,8.70484614]
[1764100254015,9.83360469,136.29,136.25,8.70484614]
[1764100254217,5.34189012,136.28,136.25,8.70484614]
[1764100254416,6.77360469,136.29,136.27,2.05]
[1764100254814,6.77360469,136.3,136.27,2.05]
[1764100255014,5.34085196,136.29,136.27,2.09702362]
[1764100255217,9.83360469,136.31,136.27,8.70452362]
[1764100255520,5.34271654,136.3,136.27,8.70452362]
[1764100255720,5.34271654,136.29,136.27,8.70452362]
[1764100255913,9.83360469,136.31,136.27,8.70452362]
[1764100256224,9.87661822,136.31,136.3,1.80724483]
[1764100256420,15.22483915,136.31,136.3,1.80724483]
[1764100256619,3.06,136.3,136.29,1.80724483]
[1764100256820,15.22495749,136.3,136.29,1.80724483]
[1764100257325,8.40569688,136.3,136.27,0.04702362]
[1764100257525,5.34569688,136.29,136.27,2.09702362]
[1764100257721,5.34569688,136.28,136.27,2.09702362]
[1764100258324,3.06,136.3,136.27,8.70462362]
[1764100258621,5.35041965,136.29,136.27,8.70462362]
[1764100258823,3.06,136.3,136.27,0.04702362]
[1764100259123,3.06,136.28,136.27,0.04702362]
[1764100259324,8.41221879,136.28,136.27,0.04702362]
[1764100260225,5.35221879,136.28,136.27,0.04702362]
[1764100260629,8.35221879,136.28,136.27,0.04702362]
[1764100261619,13.80337803,136.28,136.27,0.04702362]
[1764100262630,10.80337803,136.28,136.27,0.04702362]
[1764100262830,13.80337803,136.28,136.27,0.04702362]
[1764100263621,3.0,136.31,136.27,2.09702362]
[1764100263825,10.7870763,136.3,136.27,2.09702362]
[1764100264027,5.32950765,136.29,136.28,2.05]
[1764100264431,5.45816911,136.31,136.28,2.05]
[1764100264734,5.32959248,136.3,136.28,8.6571]
[1764100264926,3.0,136.32,136.28,2.05]
[1764100265130,13.78915936,136.31,136.3,1.81559585]
[1764100265328,3.0,136.3,136.29,0.05348298]
[1764100265533,3.0,136.3,136.28,0.05061316]
[1764100265534,3.0,136.29,136.28,0.05061316]
[1764100265837,3.0,136.28,136.27,0.05209739]
[1764100266033,5.33085174,136.28,136.26,3.06569847]
[1764100266223,3.0,136.31,136.26,3.06569847]
[1764100266421,3.0,136.31,136.3,1.81691531]
[1764100266623,13.80225745,136.31,136.3,1.81691531]
[1764100266823,8.33318734,136.31,136.3,1.81691531]
[1764100267023,8.33318734,136.31,136.29,0.04992336]
[1764100267238,8.33318734,136.3,136.29,0.04992336]
[1764100269044,5.33318734,136.3,136.29,6.65652336]
[1764100269240,5.33318734,136.3,136.29,0.04992336]
[1764100269439,8.33318734,136.3,136.29,0.04992336]
[1764100271340,8.47326587,136.33,136.3,3.01]
[1764100271544,5.47283258,136.35,136.3,3.05915964]
[1764100271741,5.33546449,136.34,136.3,3.05915964]
[1764100271939,3.0,136.35,136.3,3.05915964]
[1764100272146,8.47198899,136.34,136.33,1.81493981]
[1764100272446,3.0,136.33,136.32,0.05325415]
[1764100272942,3.0,136.33,136.32,1.86828631]
[1764100273147,8.33093345,136.33,136.32,0.05325415]
[1764100273345,8.33093345,136.34,136.32,1.86876209]
[1764100273543,25.24,136.36,136.33,1.81550794]
[1764100273544,3.0,136.35,136.33,1.81550794]
[1764100273844,3.0,136.35,136.34,1.81550794]
[1764100274041,3.0,136.35,136.32,3.06325415]
[1764100274236,3.0,136.35,136.34,1.81293375]
[1764100274434,8.33003014,136.35,136.34,1.81293375]
[1764100274633,3.0,136.34,136.32,0.05325415]
[1764100275742,25.24,136.36,136.26,3.01]
[1764100275743,3.0,136.32,136.26,3.01]
[1764100276043,3.0,136.32,136.3,1.81284683]
[1764100276249,3.0,136.31,136.3,1.81284683]
[1764100276943,3.0,136.31,136.23,9.6191]
[1764100277150,3.0,136.28,136.23,9.6191]
[1764100277349,3.0,136.28,136.23,3.01]
[1764100277746,2.94,136.27,136.23,3.01]
[1764100278045,2.99167113,136.26,136.24,0.05056035]
[1764100279244,2.94,136.23,136.17,3.02]
[1764100279545,25.22,136.24,136.17,3.02]
[1764100279746,25.22,136.24,136.18,3.02]
[1764100280148,0.05221168,136.22,136.2,0.04715244]
[1764100280346,0.05221168,136.22,136.2,3.06715244]
[1764100281048,0.05221168,136.22,136.2,9.67805244]
[1764100281240,0.05221168,136.22,136.21,3.02]
[1764100282441,5.3445831,136.28,136.23,3.02]
[1764100282635,2.94,136.33,136.27,3.02]
[1764100282841,2.94,136.33,136.3,1.81256076]
[1764100283047,2.94,136.32,136.31,1.81256076]
[1764100283248,2.94,136.32,136.27,3.02]
[1764100283545,0.05107909,136.31,136.28,3.07017569]
[1764100284347,0.05107909,136.31,136.29,6.6065]
[1764100284544,0.05107909,136.31,136.29,9.6265]
[1764100284742,0.05107909,136.31,136.3,3.02]
[1764100285246,0.05107909,136.31,136.29,9.6265]
[1764100286045,0.05107909,136.31,136.3,3.02]
[1764100286537,0.05107909,136.31,136.29,6.6065]
[1764100286941,0.05107909,136.31,136.29,9.6265]
[1764100287248,2.99107909,136.31,136.28,0.05017569]
[1764100287447,2.99107909,136.31,136.3,1.8129994]
[1764100287841,2.99107909,136.31,136.29,1.8129994]
[1764100288041,2.94,136.3,136.29,1.8129994]
[1764100289846,2.94,136.29,136.28,0.05017569]
[1764100290555,2.99107909,136.31,136.28,0.05017569]
[1764100290745,2.99107909,136.31,136.29,1.81298095]
[1764100291148,2.99107909,136.31,136.3,1.81298095]
[1764100291343,8.33673027,136.31,136.28,0.05017569]
[1764100291547,2.94,136.3,136.28,0.05017569]
[1764100292251,2.99107909,136.31,136.28,0.05017569]
[1764100292449,2.99107909,136.31,136.3,1.81304655]
[1764100294759,2.94,136.3,136.28,0.05017569]
[1764100295059,2.94,136.29,136.28,0.05017569]
[1764100302460,5.37143864,136.31,136.28,3.07017569]
[1764100302666,2.99107909,136.31,136.3,1.81211217]
[1764100306672,2.99107909,136.31,136.28,0.05017569]
[1764100308064,8.31117557,136.31,136.28,0.05017569]
[1764100308273,3.07,136.3,136.28,0.05017569]
[1764100308770,3.07,136.3,136.29,1.81080937]
[1764100309275,3.07,136.3,136.23,3.03]
[1764100309276,3.07,136.29,136.23,3.03]
[1764100310464,0.05389447,136.27,136.26,3.03]
[1764100313772,0.05389447,136.27,136.25,0.04957847]
[1764100314177,0.05389447,136.27,136.25,3.07957847]
[1764100315770,0.05389447,136.27,136.26,3.03]
[1764100316574,0.05389447,136.27,136.25,6.65807847]
[1764100316575,0.05389447,136.27,136.25,3.07957847]
[1764100316961,3.12389447,136.27,136.25,0.04957847]
[1764100318370,0.05389447,136.27,136.25,3.07957847]
[1764100320279,3.14389447,136.27,136.25,0.04957847]
[1764100320468,0.05389447,136.27,136.25,9.79807847]
[1764100320667,0.05389447,136.27,136.25,3.18957847]
[1764100321278,0.05389447,136.27,136.26,9.7481]
[1764100322576,0.05389447,136.27,136.25,0.04957847]
[1764100322774,3.14389447,136.27,136.25,0.04957847]
[1764100322980,0.05389447,136.27,136.25,3.18957847]
[1764100323382,0.05389447,136.27,136.26,9.7481]
[1764100326687,0.05389447,136.27,136.26,6.6081]
[1764100327384,0.05389447,136.27,136.25,3.18957847]
[1764100329177,0.05389447,136.27,136.25,0.04957847]
[1764100329390,3.14389447,136.27,136.25,0.04957847]
[1764100329685,0.05389447,136.27,136.25,3.18957847]
[1764100330189,0.05389447,136.27,136.25,9.79807847]
[1764100331690,0.05389447,136.27,136.26,3.14]
[1764100332201,0.05389447,136.27,136.26,9.7481]
[1764100334592,3.14389447,136.27,136.25,0.04957847]
[1764100334990,3.14389447,136.27,136.26,1.81463276]
[1764100335291,8.40954293,136.27,136.26,1.81463276]
[1764100335888,15.01724293,136.27,136.26,1.81463276]
[1764100336192,17.73105478,136.27,136.26,1.81463276]
[1764100336381,15.01724293,136.27,136.26,1.81463276]
[1764100337778,0.05389447,136.27,136.26,1.81463276]
[1764100337984,0.05389447,136.27,136.25,0.04957847]
[1764100338497,9.625,136.33,136.28,3.07]
[1764100338687,9.625,136.33,136.31,1.8124493]
[1764100338688,3.02,136.32,136.31,1.8124493]
[1764100339084,9.6257,136.31,136.3,1.8124493]
[1764100339392,3.02,136.3,136.29,0.04953627]
[1764100339591,3.02,136.3,136.29,1.86181226]
[1764100339784,3.02,136.3,136.29,0.04953627]
[1764100339985,3.02,136.3,136.29,1.86175107]
[1764100340185,3.02,136.3,136.29,0.04953627]
[1764100343696,28.24,136.3,136.29,0.04953627]
[1764100343897,3.02,136.28,136.25,3.07]
[1764100344985,3.07005597,136.28,136.25,3.11770558]
[1764100345188,0.05005597,136.28,136.25,3.11770558]
[1764100346099,3.07005597,136.28,136.25,3.11770558]
[1764100346293,0.05005597,136.28,136.25,3.11770558]
[1764100346496,9.67715597,136.28,136.25,3.11770558]
[1764100346894,0.05005597,136.28,136.25,3.11770558]
[1764100347690,0.05005597,136.28,136.26,3.07]
[1764100348493,3.07005597,136.28,136.25,3.11770558]
[1764100348902,0.05005597,136.28,136.25,3.11770558]
[1764100352201,0.05005597,136.28,136.26,3.07]
[1764100352400,3.07005597,136.28,136.25,0.04770558]
[1764100352605,3.07005597,136.28,136.27,1.81079093]
[1764100353205,8.49522119,136.28,136.27,1.81079093]
[1764100353505,3.02,136.27,136.26,1.81079093]
[1764100353806,15.05276522,136.27,136.26,1.81079093]
[1764100354205,3.02,136.26,136.2,3.07]
[1764100354904,5.4247052,136.25,136.2,3.07]
[1764100355206,0.04669253,136.24,136.21,9.73087649]
[1764100355907,0.04669253,136.24,136.22,9.6799]
[1764100356706,0.04669253,136.24,136.23,3.07]
[1764100358606,2.71505681,136.29,136.23,6.6092]
[1764100358810,5.42926223,136.28,136.27,1.80993191]
[1764100359010,5.42926223,136.28,136.24,3.07]
[1764100359211,3.02,136.29,136.24,3.07]
[1764100359414,5.42907575,136.28,136.24,3.07]
[1764100359712,0.05304784,136.27,136.25,3.11644716]
[1764100367617,0.05304784,136.27,136.25,9.72504716]
[1764100367813,0.05304784,136.27,136.26,2.96]
[1764100370421,5.41541916,136.31,136.29,3.01155228]
[1764100370726,3.14675391,136.32,136.29,3.01155228]
[1764100371022,5.41541841,136.31,136.29,3.01155228]
[1764100371212,3.14675391,136.32,136.29,3.01155228]
[1764100371414,3.14675391,136.32,136.31,1.80973336]
[1764100371615,8.56130269,136.32,136.31,1.80973336]
[1764100372725,5.46130269,136.32,136.31,4.76973336]
[1764100372925,0.04675391,136.32,136.31,2.96]
[1764100373226,9.94712258,136.38,136.31,2.96]
[1764100373227,3.1,136.38,136.31,2.96]
[1764100373410,5.40756735,136.37,136.36,1.80695106]
[1764100373720,25.22,136.39,136.34,2.96]
[1764100373915,5.40690967,136.38,136.37,1.8062851]
[1764100374320,28.37135119,136.39,136.37,1.8062851]
[1764100374511,0.05135119,136.39,136.37,4.7662851]
[1764100374715,0.05135119,136.39,136.38,1.8062851]
[1764100374923,0.05135119,136.39,136.37,2.96]
[1764100376222,3.1,136.38,136.36,0.05422351]
[1764100376422,0.05135119,136.39,136.36,0.05422351]
[1764100376720,0.05135119,136.39,136.36,3.01422351]
[1764100377322,0.05135119,136.39,136.37,2.96]
[1764100377918,33.45234517,136.45,136.38,2.96]
[1764100378119,31.16571842,136.45,136.42,2.96]
[1764100378318,31.16571842,136.45,136.43,1.79534551]
[1764100378915,31.16571842,136.45,136.43,1.84342825]
[1764100379123,31.16571842,136.45,136.43,0.04808274]
[1764100379323,37.76471842,136.45,136.43,1.84119864]
[1764100379524,28.06571842,136.45,136.43,1.84119864]
[1764100379832,34.66481842,136.45,136.43,0.04808274]
[1764100380029,34.66481842,136.45,136.43,1.84126311]
[1764100380229,34.66481842,136.45,136.43,0.04808274]
[1764100380432,37.69481842,136.45,136.43,1.84118773]
[1764100380632,37.69481842,136.45,136.43,0.04808274]
[1764100380832,37.69481842,136.45,136.43,1.84148408]
[1764100381033,37.69481842,136.45,136.43,0.04808274]
[1764100381232,31.09571842,136.45,136.43,1.84183055]
[1764100381437,28.06571842,136.45,136.44,4.9318376]
[1764100381735,28.06571842,136.45,136.44,3.14]
[1764100382739,28.06571842,136.45,136.43,0.04808274]
[1764100383035,28.06571842,136.45,136.43,3.18808274]
[1764100383943,31.09571842,136.45,136.44,1.78828211]
[1764100384129,31.09571842,136.45,136.43,0.04808274]
[1764100384524,3.03,136.44,136.43,0.04808274]
[1764100385132,28.06571842,136.45,136.43,3.18808274]
[1764100385338,28.06571842,136.45,136.44,1.78635599]
[1764100385544,28.06571842,136.45,136.43,3.18808274]
[1764100385939,28.06571842,136.45,136.44,3.14]
[1764100386945,31.09571842,136.45,136.43,0.04808274]
[1764100387743,28.06571842,136.45,136.44,1.78400097]
[1764100388047,28.06571842,136.45,136.43,0.04808274]
[1764100388048,2.84571842,136.45,136.43,3.18808274]
[1764100388240,2.84571842,136.45,136.44,3.14]
[1764100388436,2.84571842,136.45,136.43,3.18808274]
[1764100389646,28.23,136.5,136.44,3.14]
[1764100389945,3.03,136.49,136.46,1.78025247]
[1764100390130,3.03,136.49,136.46,1.82963695]
[1764100390331,3.03,136.49,136.46,0.04938448]
[1764100390545,3.03,136.49,136.46,4.96922657]
[1764100390743,3.03,136.49,136.47,1.77984209]
[1764100390941,3.03,136.49,136.46,3.18938448]
[1764100391246,3.03,136.49,136.47,1.77962861]
[1764100393343,28.23,136.5,136.47,3.14]
[1764100393545,28.23,136.5,136.46,3.18938448]
[1764100393847,3.03,136.49,136.47,1.77762933]
[1764100394046,3.03,136.49,136.46,0.04938448]
[1764100394847,3.03,136.49,136.47,1.77703245]
[1764100395035,25.2,136.5,136.47,4.91703245]
[1764100395235,28.23,136.5,136.48,1.77656272]
[1764100395449,25.2,136.5,136.47,6.5978]
[1764100395651,28.23,136.5,136.47,9.7378]
[1764100396148,28.23,136.5,136.47,6.5978]
[1764100396343,28.23,136.5,136.47,9.7378]
[1764100396545,28.23,136.5,136.48,6.5973]
[1764100396949,28.23,136.5,136.47,3.14]
[1764100397150,28.23,136.5,136.48,1.77403939]
[1764100399343,25.2,136.5,136.48,4.75403939]
[1764100399546,25.2,136.5,136.49,1.77403939]
[1764100399854,25.2,136.5,136.48,2.98]
[1764100400055,25.2,136.5,136.49,1.7729843]
[1764100400350,25.2,136.5,136.46,0.04938448]
[1764100400351,28.09,136.5,136.46,3.02938448]
[1764100400651,25.2,136.5,136.47,1.77366963]
[1764100400950,25.2,136.5,136.49,2.98]
[1764100401160,25.2,136.5,136.46,3.02938448]
[1764100401455,28.09,136.5,136.48,1.77413466]
[1764100402158,2.89,136.49,136.48,1.77413466]
[1764100402456,2.89,136.49,136.47,1.77413466]
[1764100402655,2.89,136.49,136.46,0.04938448]
[1764100402957,2.89,136.49,136.47,1.77375265]
[1764100410657,2.89,136.49,136.46,0.04938448]
[1764100410860,2.89,136.49,136.47,1.78066305]
[1764100411267,2.89,136.48,136.46,0.04938448]
[1764100412168,8.19322373,136.48,136.46,0.04938448]
[1764100412466,2.89,136.48,136.46,0.04938448]
[1764100412776,8.19322373,136.49,136.46,3.02938448]
[1764100412962,6.84712258,136.52,136.46,0.04938448]
[1764100412963,2.89,136.48,136.46,0.04938448]
[1764100414166,8.22822989,136.48,136.46,0.04938448]
[1764100414364,5.33822989,136.49,136.47,1.78347276]
[1764100414669,8.23285343,136.49,136.47,1.78347276]
[1764100414870,2.89,136.49,136.47,1.78347276]
[1764100416272,5.35425267,136.48,136.47,1.78347276]
[1764100416774,2.89,136.49,136.46,9.62758448]
[1764100416977,2.89,136.49,136.47,1.78556964]
[1764100417269,5.33036366,136.48,136.47,1.78829962]
[1764100418370,5.33036366,136.48,136.47,4.76829962]
[1764100418570,5.33036366,136.48,136.46,9.62768448]
[1764100418878,2.89,136.49,136.47,1.78966404]
[1764100419075,5.34204653,136.48,136.47,1.78966404]
[1764100419276,5.34204653,136.48,136.47,4.76966404]
[1764100419467,5.34204653,136.48,136.47,2.98]
[1764100420673,8.23204653,136.48,136.46,9.62768448]
[1764100420976,5.34204653,136.47,136.46,6.64768448]
[1764100421176,5.34204653,136.47,136.46,9.62768448]
[1764100423283,5.34204653,136.47,136.46,0.04938448]
[1764100423689,8.23204653,136.47,136.41,2.98]
[1764100423874,4.22867414,136.5,136.45,1.79432991]
[1764100423875,8.23204653,136.46,136.45,1.79432991]
[1764100424884,8.23204653,136.46,136.44,1.8410591]
[1764100425085,5.34204653,136.45,136.44,0.04672919]
[1764100425282,5.34204653,136.45,136.44,1.8418028]
[1764100425584,2.89,136.46,136.44,0.04672919]
[1764100425879,2.89,136.46,136.45,1.79463864]
[1764100426184,8.16918047,136.46,136.45,1.79463864]
[1764100426683,8.16918047,136.46,136.44,0.04672919]
[1764100426982,2.89,136.46,136.45,1.79495132]
[1764100427184,5.26763843,136.46,136.45,1.79495132]
[1764100427378,5.26763843,136.46,136.44,2.96672919]
[1764100427580,0.04938448,136.47,136.44,9.56602919]
[1764100427780,0.04938448,136.47,136.45,2.92]
[1764100428282,0.04938448,136.47,136.46,2.92]
[1764100429484,0.04938448,136.47,136.45,9.5188]
[1764100430883,0.04938448,136.47,136.46,2.92]
[1764100433283,0.04938448,136.47,136.45,9.5188]
[1764100433784,0.04938448,136.47,136.46,6.5984]
[1764100434089,0.04938448,136.47,136.44,2.96672919]
[1764100434389,0.04938448,136.47,136.46,2.92]
[1764100435396,0.04938448,136.47,136.45,6.5989]
[1764100435586,0.04938448,136.47,136.45,9.5189]
[1764100436290,0.04938448,136.47,136.46,11.31390495]
[1764100436589,0.04938448,136.47,136.46,9.5184]
[1764100443109,28.35,136.54,136.5,3.02]
[1764100443406,28.35,136.54,136.52,1.79048895]
[1764100443608,3.17,136.53,136.49,9.6166]
[1764100443809,3.17,136.53,136.52,1.79003018]
[1764100444009,28.35,136.54,136.52,1.79003018]
[1764100444396,25.18,136.54,136.52,4.81003018]
[1764100444595,25.18,136.54,136.52,3.02]
[1764100445211,3.17,136.53,136.51,0.04734694]
[1764100445408,3.17,136.53,136.52,1.78813657]
[1764100445605,3.17,136.53,136.51,0.04734694]
[1764100451415,25.18,136.54,136.52,4.80676974]
[1764100451610,25.18,136.54,136.52,3.02]
[1764100452008,28.35,136.54,136.52,3.02]
[1764100452208,3.17,136.56,136.53,4.80580599]
[1764100452414,3.17,136.56,136.54,1.78580599]
[1764100452613,3.17,136.56,136.53,3.02]
[1764100452816,3.17,136.56,136.54,1.78549612]
[1764100453221,3.17,136.56,136.54,8.37999612]
[1764100453411,3.17,136.56,136.53,3.02]
[1764100453611,3.17,136.56,136.54,1.78448368]
[1764100454512,3.17,136.57,136.54,4.80448368]
[1764100454708,3.17,136.57,136.54,3.07569357]
[1764100455415,3.17,136.57,136.54,6.65019357]
[1764100455717,25.18,136.58,136.54,6.65019357]
[1764100455718,28.35,136.58,136.56,3.02]
[1764100455918,28.35,136.58,136.55,3.02]
[1764100456315,25.18,136.58,136.56,3.02]
[1764100456614,3.17,136.61,136.58,3.02]
[1764100456804,3.17,136.62,136.59,1.78150518]
[1764100457008,3.17,136.62,136.58,3.06717618]
[1764100457218,3.17,136.62,136.59,1.78112035]
[1764100457411,3.17,136.62,136.59,4.71112035]
[1764100457617,3.17,136.62,136.59,11.30312035]
[1764100457914,25.18,136.63,136.6,4.70968812]
[1764100457915,28.04,136.63,136.6,4.70968812]
[1764100458218,25.18,136.63,136.62,2.93]
[1764100458517,2.86,136.66,136.61,0.04941035]
[1764100458518,2.86,136.65,136.61,0.04941035]
[1764100458718,2.86,136.65,136.62,1.77627252]
[1764100460618,2.86,136.63,136.61,0.04941035]
[1764100461717,2.86,136.63,136.62,1.77157028]
[1764100463417,2.86,136.63,136.61,0.04941035]
[1764100465719,2.86,136.64,136.62,1.76779963]
[1764100467222,28.02,136.66,136.63,2.93]
[1764100467626,2.86,136.65,136.61,2.97941035]
[1764100467828,2.86,136.65,136.62,4.69581859]
[1764100468125,2.86,136.65,136.61,0.04941035]
[1764100468126,2.86,136.65,136.61,9.57031035]
[1764100468326,2.86,136.65,136.62,1.76586234]
[1764100469016,2.86,136.65,136.62,11.28646234]
[1764100469218,2.86,136.65,136.62,9.5206]
[1764100470417,2.86,136.65,136.63,9.5201]
[1764100470820,28.02,136.66,136.63,2.93]
[1764100471330,2.86,136.65,136.64,6.5896]
[1764100472433,2.86,136.67,136.64,6.5896]
[1764100472629,2.86,136.67,136.65,1.76512925]
[1764100472829,2.86,136.67,136.64,0.05433343]
[1764100473132,2.86,136.65,136.6,2.93]
[1764100473430,2.86,136.63,136.62,1.76633258]
[1764100474933,5.56665962,136.63,136.62,1.76633258]
[1764100475134,2.91433343,136.64,136.61,0.05048032]
[1764100475327,2.86,136.63,136.62,1.76613791]
[1764100477333,2.86,136.63,136.61,0.05048032]
[1764100478126,2.86,136.62,136.61,0.05048032]
[1764100479739,2.86,136.62,136.61,0.00048032]
[1764100479740,5.56665962,136.62,136.61,0.00048032]
[1764100480740,2.86,136.62,136.61,0.00048032]
[1764100480937,5.56665962,136.62,136.61,0.00048032]
[1764100481237,2.86,136.61,136.55,2.93]
[1764100481538,0.05433343,136.64,136.55,2.93]
[1764100481539,2.86,136.59,136.57,1.76966431]
[1764100482237,2.91644521,136.59,136.57,1.82561728]
[1764100482430,2.91644521,136.59,136.57,0.05595297]
[1764100482631,2.91644521,136.59,136.57,1.82752755]
[1764100482930,2.91644521,136.59,136.57,0.05595297]
[1764100483129,2.91644521,136.59,136.57,1.82762976]
[1764100483331,2.91644521,136.59,136.57,0.05595297]
[1764100483535,2.91644521,136.59,136.57,1.82853918]
[1764100483939,2.91644521,136.59,136.57,0.05595297]
[1764100484135,2.91644521,136.59,136.57,1.82853875]
[1764100484340,2.91644521,136.59,136.57,0.05595297]
[1764100484539,2.91644521,136.59,136.57,1.82964171]
[1764100484741,2.91644521,136.59,136.57,0.05595297]
[1764100484941,2.86,136.58,136.57,1.83005978]
[1764100485142,2.86,136.58,136.57,0.05595297]
[1764100485443,2.86,136.58,136.57,1.83027518]
[1764100485645,2.86,136.58,136.57,0.05595297]
[1764100485842,2.86,136.58,136.57,1.83057784]
[1764100486142,2.86,136.58,136.57,0.05595297]
[1764100486446,2.86,136.58,136.57,1.83146618]
[1764100486648,2.86,136.58,136.57,0.05595297]
[1764100486844,2.86,136.58,136.57,1.83146716]
[1764100487041,5.62310483,136.59,136.57,2.98595297]
[1764100487345,5.62310483,136.59,136.57,0.05595297]
[1764100487637,3.11,136.58,136.57,1.83243087]
[1764100487843,3.11,136.58,136.57,0.05595297]
[1764100488040,3.11,136.58,136.57,1.83295295]
[1764100488241,3.11,136.58,136.57,0.05595297]
[1764100488440,3.11,136.58,136.57,1.83364255]
[1764100488636,3.11,136.58,136.57,0.05595297]